[Event "Titled Tuesday Blitz April 18 Early 2023"]
[White "Tan, Ralph"]
[Black "Kevlishvili, Robby"]
[WhiteFideId "30966590"]
[BlackFideId "1040634"]
[WhiteElo "2099"]
[BlackElo "2572"]
[Result "1-0"]
[Round "01"]
[TimeControl "180+2"]
[Date "2023.04.18"]
[WhiteClock "0:00:19"]
[BlackClock "0:00:33"]

1. Nf3 {[%clk 0:03:00]}  d5 {[%clk 0:02:59]} 2. g3 {[%clk 0:03:01]}  c6 {[%clk 0:02:57]} 3. Bg2 {[%clk 0:03:01]}  Bg4 {[%clk 0:02:57]} 4. Ne5 {[%clk 0:03:01]}  Bf5 {[%clk 0:02:56]} 5. O-O {[%clk 0:03:02]}  Nd7 {[%clk 0:02:56]} 6. d4 {[%clk 0:03:02]}  e6 {[%clk 0:02:55]} 7. c4 {[%clk 0:03:02]}  Ngf6 {[%clk 0:02:54]} 8. Nc3 {[%clk 0:03:02]}  Be7 {[%clk 0:02:54]} 9. Bf4 {[%clk 0:03:02]}  O-O {[%clk 0:02:53]} 10. Qb3 {[%clk 0:03:01]}  Qb6 {[%clk 0:02:52]} 11. Nxd7 {[%clk 0:03:01]}  Nxd7 {[%clk 0:02:52]} 12. e4 {[%clk 0:03:02]}  dxe4 {[%clk 0:02:51]} 13. Nxe4 {[%clk 0:03:02]}  Bxe4 {[%clk 0:02:42]} 14. Bxe4 {[%clk 0:03:03]}  Nf6 {[%clk 0:02:04]} 15. Bg2 {[%clk 0:02:58]}  Qxb3 {[%clk 0:02:01]} 16. axb3 {[%clk 0:02:57]}  Rfd8 {[%clk 0:02:01]} 17. Rfd1 {[%clk 0:02:57]}  a6 {[%clk 0:01:57]} 18. h3 {[%clk 0:02:52]}  h6 {[%clk 0:01:57]} 19. Be5 {[%clk 0:02:23]}  Nd7 {[%clk 0:01:56]} 20. Bc7 {[%clk 0:02:21]}  Rdc8 {[%clk 0:01:56]} 21. Bf4 {[%clk 0:02:20]}  Nf6 {[%clk 0:01:46]} 22. d5 {[%clk 0:02:14]}  cxd5 {[%clk 0:01:43]} 23. cxd5 {[%clk 0:02:15]}  Nxd5 {[%clk 0:01:36]} 24. Bxd5 {[%clk 0:02:16]}  exd5 {[%clk 0:01:36]} 25. Rxd5 {[%clk 0:02:17]}  Bf6 {[%clk 0:01:34]} 26. Rd7 {[%clk 0:02:10]}  b5 {[%clk 0:01:31]} 27. Rd6 {[%clk 0:02:01]}  a5 {[%clk 0:01:11]} 28. Rb6 {[%clk 0:02:00]}  Bxb2 {[%clk 0:01:05]} 29. Rb1 {[%clk 0:01:58]}  Bd4 {[%clk 0:01:04]} 30. Rxb5 {[%clk 0:01:56]}  Rc2 {[%clk 0:01:05]} 31. Rf1 {[%clk 0:01:51]}  Ra2 {[%clk 0:00:59]} 32. h4 {[%clk 0:01:36]}  Re8 {[%clk 0:00:58]} 33. Rd5 {[%clk 0:01:35]}  Re4 {[%clk 0:00:52]} 34. Kg2 {[%clk 0:01:30]}  Bf6 {[%clk 0:00:44]} 35. Bc7 {[%clk 0:01:02]}  Bc3 {[%clk 0:00:36]} 36. Kf3 {[%clk 0:00:48]}  Re7 {[%clk 0:00:33]} 37. Bf4 {[%clk 0:00:41]}  Rb7 {[%clk 0:00:33]} 38. Rd3 {[%clk 0:00:20]}  Rb6 {[%clk 0:00:33]} 39. Rxc3 {[%clk 0:00:19]} 1-0


[Site "https://www.chess.com"]

[Event "Titled Tuesday Blitz April 18 Early 2023"]
[White "Indjic, Aleksandar"]
[Black "Kubatko, Ivan"]
[WhiteFideId "911925"]
[BlackFideId "24111473"]
[WhiteElo "2614"]
[BlackElo "2285"]
[Result "1-0"]
[Round "01"]
[TimeControl "180+2"]
[Date "2023.04.18"]
[WhiteClock "0:01:52"]
[BlackClock "0:00:06"]

1. d4 {[%clk 0:02:59]}  d5 {[%clk 0:03:00]} 2. c4 {[%clk 0:02:58]}  e6 {[%clk 0:03:00]} 3. Nf3 {[%clk 0:02:58]}  c5 {[%clk 0:02:59]} 4. cxd5 {[%clk 0:02:58]}  exd5 {[%clk 0:03:00]} 5. Bg5 {[%clk 0:02:56]}  Be7 {[%clk 0:02:59]} 6. Bxe7 {[%clk 0:02:56]}  Nxe7 {[%clk 0:02:59]} 7. dxc5 {[%clk 0:02:57]}  Qa5+ {[%clk 0:02:48]} 8. Nc3 {[%clk 0:02:56]}  Qxc5 {[%clk 0:02:48]} 9. e3 {[%clk 0:02:55]}  Nbc6 {[%clk 0:02:48]} 10. Be2 {[%clk 0:02:54]}  O-O {[%clk 0:02:48]} 11. O-O {[%clk 0:02:52]}  a6 {[%clk 0:02:30]} 12. Rc1 {[%clk 0:02:51]}  Qa5 {[%clk 0:02:26]} 13. Nd4 {[%clk 0:02:47]}  Rd8 {[%clk 0:02:16]} 14. Bf3 {[%clk 0:02:43]}  Qb4 {[%clk 0:01:55]} 15. Nxc6 {[%clk 0:02:35]}  bxc6 {[%clk 0:01:53]} 16. Na4 {[%clk 0:02:32]}  Bf5 {[%clk 0:01:48]} 17. a3 {[%clk 0:02:31]}  Qh4 {[%clk 0:01:31]} 18. Nc5 {[%clk 0:02:18]}  h5 {[%clk 0:01:03]} 19. b4 {[%clk 0:02:13]}  Bg4 {[%clk 0:00:59]} 20. h3 {[%clk 0:02:08]}  Bf5 {[%clk 0:00:42]} 21. Bxh5 {[%clk 0:02:03]}  Rd6 {[%clk 0:00:35]} 22. Bg4 {[%clk 0:01:58]}  Rg6 {[%clk 0:00:22]} 23. Bxf5 {[%clk 0:01:58]}  Nxf5 {[%clk 0:00:22]} 24. Qf3 {[%clk 0:01:58]}  Rf6 {[%clk 0:00:15]} 25. Qg4 {[%clk 0:01:57]}  Qh6 {[%clk 0:00:11]} 26. Nd7 {[%clk 0:01:56]}  Rg6 {[%clk 0:00:07]} 27. Qxf5 {[%clk 0:01:55]}  Rd8 {[%clk 0:00:05]} 28. Ne5 {[%clk 0:01:54]}  Rf6 {[%clk 0:00:06]} 29. Qg4 {[%clk 0:01:52]} 1-0


[Site "https://www.chess.com"]

[Event "Titled Tuesday Blitz April 18 Early 2023"]
[White "Kamsky, Gata"]
[Black "Ramirez Vido, Robert Yorisan"]
[WhiteFideId "2000024"]
[BlackFideId "3513823"]
[WhiteElo "2660"]
[BlackElo "2453"]
[Result "1/2-1/2"]
[Round "01"]
[TimeControl "180+2"]
[Date "2023.04.18"]
[WhiteClock "0:00:20"]
[BlackClock "0:00:19"]

1. Nf3 {[%clk 0:02:59]}  Nf6 {[%clk 0:02:59]} 2. g3 {[%clk 0:02:59]}  g6 {[%clk 0:02:57]} 3. Bg2 {[%clk 0:02:59]}  Bg7 {[%clk 0:02:56]} 4. O-O {[%clk 0:02:59]}  O-O {[%clk 0:02:56]} 5. d3 {[%clk 0:02:44]}  d6 {[%clk 0:02:55]} 6. c4 {[%clk 0:02:33]}  e5 {[%clk 0:02:54]} 7. Nc3 {[%clk 0:02:24]}  Nc6 {[%clk 0:02:53]} 8. Rb1 {[%clk 0:02:24]}  a5 {[%clk 0:02:53]} 9. a3 {[%clk 0:02:24]}  Nd4 {[%clk 0:02:52]} 10. b4 {[%clk 0:02:16]}  axb4 {[%clk 0:02:52]} 11. axb4 {[%clk 0:02:11]}  c6 {[%clk 0:02:44]} 12. b5 {[%clk 0:02:08]}  Bd7 {[%clk 0:02:44]} 13. bxc6 {[%clk 0:02:07]}  bxc6 {[%clk 0:02:44]} 14. Nd2 {[%clk 0:01:47]}  Qa5 {[%clk 0:02:38]} 15. Nce4 {[%clk 0:01:17]}  d5 {[%clk 0:02:26]} 16. Nxf6+ {[%clk 0:01:09]}  Bxf6 {[%clk 0:02:25]} 17. cxd5 {[%clk 0:01:00]}  cxd5 {[%clk 0:02:25]} 18. Nb3 {[%clk 0:00:59]}  Nxb3 {[%clk 0:02:22]} 19. Qxb3 {[%clk 0:00:59]}  Be6 {[%clk 0:02:20]} 20. Bh6 {[%clk 0:00:57]}  Rfc8 {[%clk 0:02:10]} 21. h4 {[%clk 0:00:49]}  Bg7 {[%clk 0:02:02]} 22. Bxg7 {[%clk 0:00:47]}  Kxg7 {[%clk 0:02:02]} 23. Rfc1 {[%clk 0:00:41]}  Rxc1+ {[%clk 0:01:42]} 24. Rxc1 {[%clk 0:00:41]}  Qd2 {[%clk 0:01:43]} 25. Qc2 {[%clk 0:00:37]}  Qxc2 {[%clk 0:01:38]} 26. Rxc2 {[%clk 0:00:37]}  Ra1+ {[%clk 0:01:38]} 27. Kh2 {[%clk 0:00:37]}  d4 {[%clk 0:01:38]} 28. Bf3 {[%clk 0:00:37]}  Ra2 {[%clk 0:01:31]} 29. Rc5 {[%clk 0:00:36]}  Kf6 {[%clk 0:01:24]} 30. g4 {[%clk 0:00:36]}  h6 {[%clk 0:01:00]} 31. g5+ {[%clk 0:00:34]}  hxg5 {[%clk 0:00:59]} 32. hxg5+ {[%clk 0:00:35]}  Kxg5 {[%clk 0:00:49]} 33. Rxe5+ {[%clk 0:00:35]}  Kf6 {[%clk 0:00:50]} 34. Rc5 {[%clk 0:00:34]}  g5 {[%clk 0:00:46]} 35. Kg3 {[%clk 0:00:34]}  g4 {[%clk 0:00:43]} 36. Bxg4 {[%clk 0:00:32]}  Bxg4 {[%clk 0:00:44]} 37. Kxg4 {[%clk 0:00:33]}  Rxe2 {[%clk 0:00:45]} 38. Rf5+ {[%clk 0:00:32]}  Ke6 {[%clk 0:00:43]} 39. Rf4 {[%clk 0:00:31]}  f6 {[%clk 0:00:33]} 40. Kf3 {[%clk 0:00:29]}  Ke5 {[%clk 0:00:17]} 41. Rxd4 {[%clk 0:00:17]}  Rxf2+ {[%clk 0:00:17]} 42. Kxf2 {[%clk 0:00:17]}  Kxd4 {[%clk 0:00:18]} 43. Kf3 {[%clk 0:00:18]}  Kxd3 {[%clk 0:00:18]} 44. Kf4 {[%clk 0:00:18]}  Kd4 {[%clk 0:00:19]} 45. Kf5 {[%clk 0:00:19]}  Kd5 {[%clk 0:00:19]} 46. Kxf6 {[%clk 0:00:20]} 1/2-1/2


[Site "https://www.chess.com"]

[Event "Titled Tuesday Blitz April 18 Early 2023"]
[White "Estrada Nieto, Julian"]
[Black "Zakhartsov, Vladimir"]
[WhiteFideId "5101018"]
[BlackFideId "4145097"]
[WhiteElo "2161"]
[BlackElo "2497"]
[Result "0-1"]
[Round "01"]
[TimeControl "180+2"]
[Date "2023.04.18"]
[WhiteClock "0:00:01"]
[BlackClock "0:01:18"]

1. e4 {[%clk 0:02:55]}  c5 {[%clk 0:02:59]} 2. Nf3 {[%clk 0:02:53]}  d6 {[%clk 0:03:00]} 3. Bb5+ {[%clk 0:02:52]}  Nd7 {[%clk 0:03:00]} 4. d4 {[%clk 0:02:52]}  cxd4 {[%clk 0:02:59]} 5. Qxd4 {[%clk 0:02:53]}  e5 {[%clk 0:02:58]} 6. Qd3 {[%clk 0:02:50]}  h6 {[%clk 0:02:58]} 7. Nc3 {[%clk 0:02:48]}  Nf6 {[%clk 0:02:58]} 8. Be3 {[%clk 0:02:48]}  Be7 {[%clk 0:02:59]} 9. a4 {[%clk 0:02:46]}  O-O {[%clk 0:02:59]} 10. Bc4 {[%clk 0:02:33]}  a6 {[%clk 0:02:52]} 11. O-O {[%clk 0:02:30]}  b6 {[%clk 0:02:50]} 12. Nd5 {[%clk 0:02:28]}  Bb7 {[%clk 0:02:47]} 13. Rfd1 {[%clk 0:02:20]}  Nxd5 {[%clk 0:02:42]} 14. Bxd5 {[%clk 0:02:19]}  Qc7 {[%clk 0:02:43]} 15. c3 {[%clk 0:01:21]}  Rad8 {[%clk 0:02:29]} 16. Nd2 {[%clk 0:01:10]}  Kh8 {[%clk 0:02:22]} 17. Nc4 {[%clk 0:00:59]}  Bc8 {[%clk 0:02:11]} 18. a5 {[%clk 0:00:50]}  b5 {[%clk 0:02:11]} 19. Nb6 {[%clk 0:00:50]}  Nc5 {[%clk 0:02:11]} 20. Qe2 {[%clk 0:00:33]}  Be6 {[%clk 0:02:08]} 21. Bxc5 {[%clk 0:00:30]}  dxc5 {[%clk 0:02:08]} 22. Bxe6 {[%clk 0:00:28]}  fxe6 {[%clk 0:02:09]} 23. Qg4 {[%clk 0:00:28]}  Qc6 {[%clk 0:02:06]} 24. g3 {[%clk 0:00:28]}  c4 {[%clk 0:02:06]} 25. Kg2 {[%clk 0:00:20]}  Bc5 {[%clk 0:02:03]} 26. Rxd8 {[%clk 0:00:14]}  Rxd8 {[%clk 0:02:03]} 27. Rf1 {[%clk 0:00:15]}  Kh7 {[%clk 0:01:55]} 28. Kh3 {[%clk 0:00:12]}  Rd2 {[%clk 0:01:47]} 29. Qh5 {[%clk 0:00:09]}  Qxe4 {[%clk 0:01:43]} 30. Nc8 {[%clk 0:00:06]}  Qf5+ {[%clk 0:01:28]} 31. Qxf5+ {[%clk 0:00:06]}  exf5 {[%clk 0:01:29]} 32. Kg2 {[%clk 0:00:06]}  e4 {[%clk 0:01:28]} 33. Kh3 {[%clk 0:00:04]}  g5 {[%clk 0:01:24]} 34. g4 {[%clk 0:00:03]}  f4 {[%clk 0:01:23]} 35. Nb6 {[%clk 0:00:01]}  Bxf2 {[%clk 0:01:18]} 0-1


[Site "https://www.chess.com"]

[Event "Titled Tuesday Blitz April 18 Early 2023"]
[White "Pichot, Alan"]
[Black "Gatterer, Florian"]
[WhiteFideId "110973"]
[BlackFideId "811688"]
[WhiteElo "2573"]
[BlackElo "2221"]
[Result "1-0"]
[Round "01"]
[TimeControl "180+2"]
[Date "2023.04.18"]
[WhiteClock "0:01:04"]
[BlackClock "0:00:03"]

1. e4 {[%clk 0:03:00]}  c5 {[%clk 0:02:58]} 2. Nf3 {[%clk 0:03:00]}  e6 {[%clk 0:02:58]} 3. d4 {[%clk 0:03:00]}  cxd4 {[%clk 0:02:59]} 4. Nxd4 {[%clk 0:03:00]}  Nf6 {[%clk 0:02:59]} 5. Nc3 {[%clk 0:03:00]}  Nc6 {[%clk 0:02:59]} 6. Be2 {[%clk 0:02:57]}  Bb4 {[%clk 0:02:56]} 7. O-O {[%clk 0:02:55]}  O-O {[%clk 0:02:56]} 8. Ndb5 {[%clk 0:02:41]}  d5 {[%clk 0:02:49]} 9. exd5 {[%clk 0:02:23]}  Nxd5 {[%clk 0:02:48]} 10. Nxd5 {[%clk 0:02:19]}  exd5 {[%clk 0:02:44]} 11. Bf4 {[%clk 0:02:19]}  Bf5 {[%clk 0:02:28]} 12. c3 {[%clk 0:02:18]}  Ba5 {[%clk 0:01:55]} 13. Nd6 {[%clk 0:02:10]}  Qd7 {[%clk 0:01:51]} 14. Qxd5 {[%clk 0:02:04]}  Be6 {[%clk 0:01:40]} 15. Qh5 {[%clk 0:02:03]}  g6 {[%clk 0:01:32]} 16. Qh6 {[%clk 0:01:59]}  Bc7 {[%clk 0:01:25]} 17. Ne4 {[%clk 0:01:53]}  f5 {[%clk 0:01:05]} 18. Nc5 {[%clk 0:01:51]}  Qe7 {[%clk 0:00:32]} 19. Nxe6 {[%clk 0:01:41]}  Qxe6 {[%clk 0:00:32]} 20. Bxc7 {[%clk 0:01:33]}  Qxe2 {[%clk 0:00:32]} 21. Rad1 {[%clk 0:01:30]}  Rf7 {[%clk 0:00:27]} 22. Rd2 {[%clk 0:01:28]}  Qe6 {[%clk 0:00:22]} 23. Bf4 {[%clk 0:01:27]}  Re8 {[%clk 0:00:21]} 24. b3 {[%clk 0:01:25]}  a6 {[%clk 0:00:21]} 25. h4 {[%clk 0:01:22]}  Ne5 {[%clk 0:00:20]} 26. f3 {[%clk 0:01:12]}  Rd7 {[%clk 0:00:14]} 27. Bxe5 {[%clk 0:01:06]}  Rxd2 {[%clk 0:00:03]} 28. Qg7# {[%clk 0:01:04]} 1-0


[Site "https://www.chess.com"]

[Event "Titled Tuesday Blitz April 18 Early 2023"]
[White "Bachmann, Axel"]
[Black "Khandelwal, Ankush"]
[WhiteFideId "3700488"]
[BlackFideId "413470"]
[WhiteElo "2605"]
[BlackElo "2263"]
[Result "1-0"]
[Round "01"]
[TimeControl "180+2"]
[Date "2023.04.18"]
[WhiteClock "0:00:04"]
[BlackClock "0:00:08"]

1. e4 {[%clk 0:02:59]}  c5 {[%clk 0:02:59]} 2. Nf3 {[%clk 0:02:59]}  d6 {[%clk 0:02:58]} 3. d4 {[%clk 0:02:58]}  cxd4 {[%clk 0:02:58]} 4. Nxd4 {[%clk 0:02:58]}  Nf6 {[%clk 0:02:57]} 5. Nc3 {[%clk 0:02:58]}  a6 {[%clk 0:02:57]} 6. Bd3 {[%clk 0:02:53]}  g6 {[%clk 0:02:30]} 7. h3 {[%clk 0:02:46]}  Bg7 {[%clk 0:02:27]} 8. Be3 {[%clk 0:02:46]}  O-O {[%clk 0:02:25]} 9. Qd2 {[%clk 0:02:44]}  b5 {[%clk 0:02:13]} 10. Bh6 {[%clk 0:02:22]}  e5 {[%clk 0:01:52]} 11. Bxg7 {[%clk 0:02:20]}  Kxg7 {[%clk 0:01:33]} 12. Nde2 {[%clk 0:02:21]}  Nbd7 {[%clk 0:01:31]} 13. Ng3 {[%clk 0:02:20]}  Nc5 {[%clk 0:01:31]} 14. O-O {[%clk 0:02:17]}  Bb7 {[%clk 0:01:31]} 15. a3 {[%clk 0:02:12]}  Rc8 {[%clk 0:01:30]} 16. f4 {[%clk 0:02:12]}  exf4 {[%clk 0:01:13]} 17. Qxf4 {[%clk 0:02:13]}  Qe7 {[%clk 0:01:00]} 18. Qg5 {[%clk 0:02:01]}  Qe5 {[%clk 0:00:57]} 19. Rf5 {[%clk 0:01:26]}  Qd4+ {[%clk 0:00:50]} 20. Kh1 {[%clk 0:01:26]}  Ne6 {[%clk 0:00:47]} 21. Qh4 {[%clk 0:01:21]}  Nd7 {[%clk 0:00:31]} 22. Raf1 {[%clk 0:01:03]}  Rc5 {[%clk 0:00:20]} 23. Nge2 {[%clk 0:00:51]}  Qe3 {[%clk 0:00:19]} 24. R5f3 {[%clk 0:00:46]}  Qg5 {[%clk 0:00:17]} 25. Qf2 {[%clk 0:00:46]}  Ne5 {[%clk 0:00:16]} 26. Rg3 {[%clk 0:00:47]}  Qh6 {[%clk 0:00:16]} 27. Nd4 {[%clk 0:00:45]}  Nxd4 {[%clk 0:00:14]} 28. Qxd4 {[%clk 0:00:46]}  Rc6 {[%clk 0:00:11]} 29. Nd5 {[%clk 0:00:44]}  f6 {[%clk 0:00:08]} 30. Ne7 {[%clk 0:00:35]}  Rc7 {[%clk 0:00:04]} 31. Qxd6 {[%clk 0:00:35]}  Rxe7 {[%clk 0:00:04]} 32. Qe6 {[%clk 0:00:36]}  Rff7 {[%clk 0:00:05]} 33. Qb6 {[%clk 0:00:32]}  Bc8 {[%clk 0:00:04]} 34. a4 {[%clk 0:00:19]}  Qh4 {[%clk 0:00:04]} 35. Re3 {[%clk 0:00:17]}  Ng4 {[%clk 0:00:05]} 36. Ref3 {[%clk 0:00:15]}  Ne5 {[%clk 0:00:05]} 37. Rf4 {[%clk 0:00:16]}  Qg3 {[%clk 0:00:06]} 38. Rxf6 {[%clk 0:00:15]}  Bxh3 {[%clk 0:00:06]} 39. Rxf7+ {[%clk 0:00:07]}  Rxf7 {[%clk 0:00:07]} 40. Rxf7+ {[%clk 0:00:07]}  Kxf7 {[%clk 0:00:08]} 41. Qc7+ {[%clk 0:00:04]}  Kf6 {[%clk 0:00:07]} 42. Qd8+ {[%clk 0:00:04]}  Kg7 {[%clk 0:00:08]} 43. Qe7+ {[%clk 0:00:03]}  Kh6 {[%clk 0:00:08]} 44. Qf8+ {[%clk 0:00:04]}  Kh5 {[%clk 0:00:08]} 45. gxh3 {[%clk 0:00:03]}  Qxh3+ {[%clk 0:00:09]} 46. Kg1 {[%clk 0:00:03]}  Nf3+ {[%clk 0:00:09]} 47. Kf2 {[%clk 0:00:04]}  Qh2+ {[%clk 0:00:08]} 48. Kxf3 {[%clk 0:00:04]}  Qh1+ {[%clk 0:00:09]} 49. Ke3 {[%clk 0:00:04]}  Qe1+ {[%clk 0:00:09]} 50. Kd4 {[%clk 0:00:05]}  Qb4+ {[%clk 0:00:08]} 51. Qxb4 {[%clk 0:00:04]} 1-0


[Site "https://www.chess.com"]

[Event "Titled Tuesday Blitz April 18 Early 2023"]
[White "Kovalevsky, Stanislav"]
[Black "Kravtsiv, Martyn"]
[WhiteFideId "13508598"]
[BlackFideId "14113147"]
[WhiteElo "2174"]
[BlackElo "2695"]
[Result "1-0"]
[Round "01"]
[TimeControl "180+2"]
[Date "2023.04.18"]
[WhiteClock "0:00:11"]
[BlackClock "0:00:40"]

1. c4 {[%clk 0:02:59]}  e6 {[%clk 0:02:59]} 2. e4 {[%clk 0:02:59]}  d5 {[%clk 0:03:00]} 3. exd5 {[%clk 0:03:00]}  exd5 {[%clk 0:03:00]} 4. cxd5 {[%clk 0:03:01]}  Nf6 {[%clk 0:02:59]} 5. Nc3 {[%clk 0:03:01]}  Nxd5 {[%clk 0:02:59]} 6. Bc4 {[%clk 0:03:02]}  Nb6 {[%clk 0:02:55]} 7. Bb3 {[%clk 0:03:03]}  Bd6 {[%clk 0:02:54]} 8. Qe2+ {[%clk 0:02:56]}  Qe7 {[%clk 0:02:51]} 9. Qxe7+ {[%clk 0:02:56]}  Bxe7 {[%clk 0:02:51]} 10. Nf3 {[%clk 0:02:56]}  O-O {[%clk 0:02:51]} 11. O-O {[%clk 0:02:56]}  Nc6 {[%clk 0:02:49]} 12. d4 {[%clk 0:02:54]}  Bf6 {[%clk 0:02:48]} 13. Be3 {[%clk 0:02:55]}  Bg4 {[%clk 0:02:47]} 14. Nd5 {[%clk 0:02:50]}  Bxf3 {[%clk 0:02:23]} 15. Nxf6+ {[%clk 0:02:45]}  gxf6 {[%clk 0:02:24]} 16. gxf3 {[%clk 0:02:44]}  Nb4 {[%clk 0:02:25]} 17. Rfc1 {[%clk 0:02:21]}  N4d5 {[%clk 0:02:20]} 18. Rc5 {[%clk 0:02:21]}  c6 {[%clk 0:02:19]} 19. a4 {[%clk 0:02:20]}  Rfe8 {[%clk 0:02:14]} 20. a5 {[%clk 0:02:16]}  Nd7 {[%clk 0:02:14]} 21. Rxd5 {[%clk 0:02:11]}  cxd5 {[%clk 0:02:13]} 22. Bxd5 {[%clk 0:02:12]}  Rab8 {[%clk 0:01:57]} 23. Bf4 {[%clk 0:02:10]}  Rbc8 {[%clk 0:01:51]} 24. Bxb7 {[%clk 0:02:07]}  Rc4 {[%clk 0:01:50]} 25. Be3 {[%clk 0:01:59]}  Rb4 {[%clk 0:01:48]} 26. Bc6 {[%clk 0:01:56]}  Rd8 {[%clk 0:01:47]} 27. d5 {[%clk 0:01:48]}  a6 {[%clk 0:01:46]} 28. Rb1 {[%clk 0:01:18]}  Ne5 {[%clk 0:01:43]} 29. Bc5 {[%clk 0:00:50]}  Rb3 {[%clk 0:01:35]} 30. Bb6 {[%clk 0:00:36]}  Rc8 {[%clk 0:01:34]} 31. Bb7 {[%clk 0:00:34]}  Rc2 {[%clk 0:01:34]} 32. Bxa6 {[%clk 0:00:25]}  Nxf3+ {[%clk 0:01:34]} 33. Kg2 {[%clk 0:00:22]}  Nh4+ {[%clk 0:01:30]} 34. Kg1 {[%clk 0:00:20]}  Nf3+ {[%clk 0:01:26]} 35. Kg2 {[%clk 0:00:20]}  Nd2 {[%clk 0:01:23]} 36. Rd1 {[%clk 0:00:20]}  Rbxb2 {[%clk 0:01:20]} 37. d6 {[%clk 0:00:19]}  Ne4 {[%clk 0:01:00]} 38. d7 {[%clk 0:00:18]}  Nxf2 {[%clk 0:01:01]} 39. d8=Q+ {[%clk 0:00:17]}  Kg7 {[%clk 0:01:01]} 40. Rg1 {[%clk 0:00:13]}  Ng4+ {[%clk 0:01:00]} 41. Kf3 {[%clk 0:00:13]}  h5 {[%clk 0:00:59]} 42. Qd4 {[%clk 0:00:11]}  Rb3+ {[%clk 0:00:57]} 43. Kf4 {[%clk 0:00:10]}  Rf2+ {[%clk 0:00:54]} 44. Qxf2 {[%clk 0:00:10]}  Rb4+ {[%clk 0:00:45]} 45. Bd4 {[%clk 0:00:10]}  Kh6 {[%clk 0:00:43]} 46. Rxg4 {[%clk 0:00:10]}  hxg4 {[%clk 0:00:42]} 47. Kxg4 {[%clk 0:00:11]}  f5+ {[%clk 0:00:40]} 48. Kxf5 {[%clk 0:00:11]} 1-0


[Site "https://www.chess.com"]

[Event "Titled Tuesday Blitz April 18 Early 2023"]
[White "Baskakov, Egor"]
[Black "Golubev, Mikhail"]
[WhiteFideId "24197866"]
[BlackFideId "14100983"]
[WhiteElo "2212"]
[BlackElo "2374"]
[Result "0-1"]
[Round "01"]
[TimeControl "180+2"]
[Date "2023.04.18"]
[WhiteClock "0:00:56"]
[BlackClock "0:00:04"]

1. e4 {[%clk 0:02:59]}  c5 {[%clk 0:02:59]} 2. Nf3 {[%clk 0:02:59]}  d6 {[%clk 0:02:59]} 3. d4 {[%clk 0:02:59]}  cxd4 {[%clk 0:02:59]} 4. Nxd4 {[%clk 0:02:59]}  Nf6 {[%clk 0:02:59]} 5. Nc3 {[%clk 0:03:00]}  g6 {[%clk 0:02:59]} 6. g3 {[%clk 0:03:00]}  Nc6 {[%clk 0:02:59]} 7. Nde2 {[%clk 0:03:00]}  Bd7 {[%clk 0:02:58]} 8. Bg2 {[%clk 0:03:00]}  Qc8 {[%clk 0:02:57]} 9. h3 {[%clk 0:03:00]}  Bg7 {[%clk 0:02:56]} 10. Nf4 {[%clk 0:03:00]}  O-O {[%clk 0:02:52]} 11. O-O {[%clk 0:02:55]}  e5 {[%clk 0:02:33]} 12. Nfd5 {[%clk 0:02:54]}  Nxd5 {[%clk 0:02:24]} 13. exd5 {[%clk 0:02:43]}  Nd4 {[%clk 0:02:19]} 14. Kh2 {[%clk 0:02:40]}  Bf5 {[%clk 0:01:56]} 15. Ne4 {[%clk 0:02:33]}  Bxe4 {[%clk 0:01:49]} 16. Bxe4 {[%clk 0:02:34]}  f5 {[%clk 0:01:49]} 17. Bg2 {[%clk 0:02:20]}  Qxc2 {[%clk 0:01:37]} 18. Bg5 {[%clk 0:02:08]}  Qxd1 {[%clk 0:01:26]} 19. Rfxd1 {[%clk 0:02:09]}  Bf6 {[%clk 0:01:26]} 20. Be3 {[%clk 0:02:08]}  Nc2 {[%clk 0:01:23]} 21. Rac1 {[%clk 0:02:08]}  Nxe3 {[%clk 0:01:22]} 22. fxe3 {[%clk 0:02:09]}  e4 {[%clk 0:01:20]} 23. b3 {[%clk 0:02:08]}  Rac8 {[%clk 0:01:13]} 24. Bf1 {[%clk 0:02:08]}  Bg5 {[%clk 0:01:04]} 25. Re1 {[%clk 0:01:59]}  Rxc1 {[%clk 0:00:59]} 26. Rxc1 {[%clk 0:02:00]}  Bxe3 {[%clk 0:00:58]} 27. Rc7 {[%clk 0:02:01]}  g5 {[%clk 0:00:26]} 28. Bc4 {[%clk 0:01:51]}  Bd4 {[%clk 0:00:20]} 29. Rxb7 {[%clk 0:01:42]}  f4 {[%clk 0:00:20]} 30. gxf4 {[%clk 0:01:42]}  gxf4 {[%clk 0:00:20]} 31. Re7 {[%clk 0:01:43]}  Be5 {[%clk 0:00:19]} 32. Kg2 {[%clk 0:01:38]}  f3+ {[%clk 0:00:16]} 33. Kf2 {[%clk 0:01:35]}  Bd4+ {[%clk 0:00:16]} 34. Kf1 {[%clk 0:01:35]}  e3 {[%clk 0:00:15]} 35. Re4 {[%clk 0:01:35]}  e2+ {[%clk 0:00:14]} 36. Bxe2 {[%clk 0:01:33]}  fxe2+ {[%clk 0:00:14]} 37. Kxe2 {[%clk 0:01:34]}  Be5 {[%clk 0:00:13]} 38. Rg4+ {[%clk 0:01:33]}  Kf7 {[%clk 0:00:12]} 39. Ra4 {[%clk 0:01:34]}  Ra8 {[%clk 0:00:11]} 40. Ke3 {[%clk 0:01:31]}  h5 {[%clk 0:00:11]} 41. b4 {[%clk 0:01:31]}  Kg6 {[%clk 0:00:10]} 42. Ke4 {[%clk 0:01:30]}  Rf8 {[%clk 0:00:09]} 43. a3 {[%clk 0:01:26]}  Rf4+ {[%clk 0:00:10]} 44. Ke3 {[%clk 0:01:27]}  Rh4 {[%clk 0:00:10]} 45. Ke2 {[%clk 0:01:25]}  Rxh3 {[%clk 0:00:09]} 46. Rxa7 {[%clk 0:01:25]}  h4 {[%clk 0:00:08]} 47. Ra8 {[%clk 0:01:12]}  Kf5 {[%clk 0:00:07]} 48. b5 {[%clk 0:01:10]}  Ke4 {[%clk 0:00:07]} 49. Kf2 {[%clk 0:01:05]}  Rb3 {[%clk 0:00:05]} 50. a4 {[%clk 0:01:01]}  h3 {[%clk 0:00:05]} 51. Rc8 {[%clk 0:00:57]}  h2 {[%clk 0:00:05]} 52. Rc1 {[%clk 0:00:58]}  Rb2+ {[%clk 0:00:04]} 53. Kf1 {[%clk 0:00:56]}  h1=Q# {[%clk 0:00:04]} 0-1


[Site "https://www.chess.com"]